bitfinex-derivatives/quotes_SOLF0:USTF0_20250911
["timestamp","ask_amount","ask_price","bid_price","bid_amount"]
[1757617131792,7.08,226.42,226.41,0.02934942]
[1757617132892,7.08,226.42,226.28,6.98]
[1757617132893,3.61879363,226.42,226.28,6.98]
[1757617133099,7.08,226.38,226.28,6.98]
[1757617134194,0.03352675,226.35,226.28,6.98]
[1757617136095,7.11352675,226.35,226.28,6.98]
[1757617149808,0.03352675,226.35,226.3,7.44]
[1757617150005,0.03352675,226.35,226.32,2.20143957]
[1757617150506,0.03352675,226.35,226.33,7.44]
[1757617150706,0.03352675,226.35,226.32,2.20143957]
[1757617151106,0.00360414,226.35,226.33,7.44]
[1757617151607,0.00360414,226.35,226.32,2.20143957]
[1757617151799,0.00360414,226.35,226.33,7.44]
[1757617152606,0.00360414,226.35,226.32,2.20143957]
[1757617152804,0.00360414,226.35,226.33,7.44]
[1757617153006,0.00360414,226.35,226.32,2.20143957]
[1757617154106,0.00360414,226.35,226.33,7.44]
[1757617154608,0.00360414,226.35,226.32,2.20143957]
[1757617155007,0.00360414,226.35,226.33,7.44]
[1757617155509,0.00360414,226.35,226.32,2.20143957]
[1757617155808,0.00360414,226.35,226.33,7.44]
[1757617156206,0.00360414,226.35,226.32,2.20143957]
[1757617156714,0.00360414,226.35,226.33,7.44]
[1757617157014,0.00360414,226.35,226.32,2.20143957]
[1757617158210,0.00360414,226.35,226.33,7.44]
[1757617158411,0.00360414,226.35,226.32,2.20143957]
[1757617158807,0.00360414,226.35,226.31,2.23311284]
[1757617159003,0.00360414,226.35,226.32,7.44]
[1757617159213,0.00360414,226.35,226.31,2.23311284]
[1757617159613,0.00360414,226.35,226.32,7.44]
[1757617159913,0.00360414,226.35,226.31,2.23311284]
[1757617160714,7.08,226.34,226.32,7.44]
[1757617160910,7.08,226.34,226.31,2.23311284]
[1757617160911,7.08,226.34,226.31,0.03167327]
[1757617161709,0.00360414,226.35,226.31,0.03167327]
[1757617162310,7.08,226.33,226.31,0.03167327]
[1757617169519,7.08,226.33,226.31,7.02167327]
[1757617169724,0.00360414,226.35,226.32,6.99]
[1757617170024,0.00360414,226.35,226.31,0.03167327]
[1757617187836,3.1819776,226.34,226.24,6.99]
[1757617188142,7.37360414,226.35,226.24,6.99]
[1757617188143,7.37,226.35,226.24,6.99]
[1757617188336,7.37,226.33,226.24,6.99]
[1757617189240,0.02865874,226.31,226.24,6.99]
[1757617192742,7.37,226.3,226.24,6.99]
[1757617200344,7.37,226.3,226.15,3.44266127]
[1757617200345,7.32,226.3,226.2,7.36]
[1757617200950,0.02867777,226.27,226.2,7.36]
[1757617201248,7.34867777,226.27,226.2,7.36]
[1757617215458,7.32,226.25,226.17,7.36]
[1757617215858,7.32,226.23,226.1,7.36]
[1757617216063,7.32,226.21,226.1,7.36]
[1757617216353,7.32,226.19,226.1,7.36]
[1757617216559,7.32,226.25,226.14,0.03079377]
[1757617216758,7.32,226.16,226.14,0.03079377]
[1757617216960,3.44266127,226.23,226.14,0.03079377]
[1757617217161,13.99727012,226.22,226.14,0.03079377]
[1757617217457,0.03294451,226.17,226.14,0.03079377]
[1757617217853,7.32,226.16,226.14,0.03079377]
[1757617218051,0.03294451,226.17,226.14,0.03079377]
[1757617218252,7.32,226.16,226.14,0.03079377]
[1757617218466,0.03294451,226.17,226.14,0.03079377]
[1757617219960,7.32,226.16,226.14,0.03079377]
[1757617220166,0.03294451,226.17,226.14,0.03079377]
[1757617220362,7.32,226.16,226.14,0.03079377]
[1757617220763,0.03294451,226.17,226.14,0.03079377]
[1757617221063,0.03294451,226.17,226.15,7.36]
[1757617222569,0.03294451,226.17,226.14,0.03079377]
[1757617223563,0.03294451,226.17,226.15,7.36]
[1757617223768,0.03294451,226.17,226.14,0.03079377]
[1757617223969,0.03294451,226.17,226.15,7.36]
[1757617224166,0.03294451,226.17,226.14,7.39079377]
[1757617224364,7.32,226.16,226.14,7.39079377]
[1757617225563,0.03294451,226.17,226.15,7.36]
[1757617225764,0.03294451,226.17,226.14,0.03079377]
[1757617225967,0.03294451,226.17,226.15,7.36]
[1757617226772,0.03294451,226.17,226.14,0.03079377]
[1757617226970,0.03294451,226.17,226.15,7.36]
[1757617227174,0.03294451,226.17,226.14,0.03079377]
[1757617227874,0.03294451,226.17,226.15,7.4]
[1757617228171,0.03294451,226.17,226.14,0.03079377]
[1757617228371,0.03294451,226.17,226.15,7.4]
[1757617230476,7.46294451,226.17,226.14,0.03079377]
[1757617231170,7.43,226.16,226.14,0.03079377]
[1757617232973,0.03294451,226.17,226.14,0.03079377]
[1757617233365,7.43,226.16,226.14,0.03079377]
[1757617233569,0.03294451,226.17,226.14,0.03079377]
[1757617233771,7.43,226.16,226.14,0.03079377]
[1757617233972,0.03294451,226.17,226.14,0.03079377]
[1757617234875,7.43,226.16,226.14,0.03079377]
[1757617235272,0.03294451,226.17,226.14,0.03079377]
[1757617235472,7.43,226.16,226.14,0.03079377]
[1757617236673,7.43,226.16,226.08,7.4]
[1757617237975,0.03294451,226.17,226.08,7.4]
[1757617241082,7.46294451,226.17,226.08,7.4]
[1757617249896,0.03294451,226.17,226.08,7.4]
[1757617255195,0.03294451,226.17,226.11,7.4]
[1757617264298,0.03294451,226.17,226.14,7.19]
[1757617269498,0.03294451,226.17,226.11,7.19]
[1757617276011,0.03294451,226.17,226.11,7.19]
[1757617289217,7.14,226.16,226.11,7.19]
[1757617290111,2.23986326,226.17,226.11,7.19]
[1757617290316,9.37986326,226.17,226.05,7.07]
[1757617291520,7.17294451,226.17,226.05,7.07]
[1757617291721,0.03294451,226.17,226.05,7.07]
[1757617292423,7.14,226.16,226.05,7.07]
[1757617296926,7.14,226.14,226.05,7.07]
[1757617297622,0.0309745,226.12,226.05,7.07]
[1757617297830,7.1709745,226.12,226.05,7.07]
[1757617311125,0.0309745,226.12,226.05,7.07]
[1757617317942,0.0309745,226.12,226.05,7.07]
[1757617325247,7.29,226.11,226.05,7.07]
[1757617327750,7.29,226.11,225.99,7.54]
[1757617328047,7.29,226.09,226.0,7.54]
[1757617328449,7.31832525,226.07,226.0,7.54]
[1757617328850,0.02832525,226.07,226.0,7.54]
[1757617336452,0.02832525,226.07,226.01,7.54]
[1757617339455,0.02832525,226.07,226.03,7.54]
[1757617350358,0.02832525,226.07,226.01,62.0]
[1757617350565,0.02832525,226.07,226.02,115.21]
[1757617350762,0.02832525,226.07,226.02,107.64]
[1757617350962,0.02832525,226.07,226.03,7.57]
[1757617352065,0.02832525,226.07,226.04,95.94]
[1757617352460,0.02832525,226.07,226.05,7.57]
[1757617353157,0.02832525,226.07,226.04,95.94]
[1757617353661,0.02832525,226.07,226.05,7.57]
[1757617353864,0.02832525,226.07,226.04,95.94]
[1757617354059,0.02832525,226.07,226.05,107.62]
[1757617354367,0.02832525,226.07,226.06,7.57]
[1757617355565,0.02832525,226.07,226.06,115.19]
[1757617357267,0.02832525,226.07,225.96,13.30853942]
[1757617357268,7.56,226.06,225.97,7.57]
[1757617357469,7.56,226.06,226.01,7.57]
[1757617357663,7.56,226.06,226.02,7.57]
[1757617357869,7.56,226.06,226.01,107.62]
[1757617358666,7.56,226.06,226.02,7.57]
[1757617359074,0.02832525,226.07,226.02,7.57]
[1757617359265,0.02832525,226.07,226.01,107.62]
[1757617359470,0.02832525,226.07,226.02,7.57]
[1757617359669,0.02832525,226.07,226.01,107.62]
[1757617360072,0.02832525,226.07,226.02,7.57]
[1757617360573,0.02832525,226.07,226.01,107.62]
[1757617361174,0.02832525,226.07,226.02,7.57]
[1757617361365,0.02832525,226.07,226.01,107.62]
[1757617361566,0.02832525,226.07,226.02,7.57]
[1757617362474,0.02832525,226.07,226.01,107.62]
[1757617362674,0.02832525,226.07,226.02,7.57]
[1757617363673,0.02832525,226.07,226.02,62.0]
[1757617363874,0.02832525,226.07,226.03,7.57]
[1757617364075,0.02832525,226.07,226.02,62.0]
[1757617364476,0.02832525,226.07,226.02,7.57]
[1757617366285,0.02832525,226.07,226.05,7.57]
[1757617366477,0.02832525,226.07,226.06,115.17]
[1757617367081,7.56,226.14,226.07,7.57]
[1757617368181,0.03295499,226.13,226.07,7.57]
[1757617383397,7.4,226.07,225.97,7.23]
[1757617383794,7.4,226.05,225.97,7.23]
[1757617383993,7.4,226.03,225.97,7.23]
[1757617384199,4.65422215,226.02,225.97,7.23]
[1757617384402,12.05422215,226.01,225.97,7.23]
[1757617384602,7.4,226.0,225.97,7.23]
[1757617387902,7.4,226.0,225.96,7.23]
[1757617388597,7.4,226.0,225.95,7.12]
[1757617388798,7.4,226.0,225.96,7.23]
[1757617389298,7.4,226.0,225.95,7.12]
[1757617389899,7.4,226.0,225.96,7.23]
[1757617390199,7.4,226.0,225.97,7.23]
[1757617394507,0.02841622,226.04,225.98,2.20770676]
[1757617394697,0.02841622,226.04,225.99,7.23]
[1757617395205,0.02841622,226.04,225.96,7.23]
[1757617403014,0.02841622,226.04,225.97,107.58]
[1757617403215,0.02841622,226.04,225.98,7.23]
[1757617403413,0.02841622,226.04,226.01,2.20770676]
[1757617403609,0.02841622,226.04,226.02,7.23]
[1757617406818,7.4,226.13,226.02,7.23]
[1757617407018,7.4,226.13,226.05,2.20770676]
[1757617407218,7.4,226.13,226.07,7.23]
[1757617407516,7.57,226.19,226.07,7.23]
[1757617407711,7.57,226.17,226.08,7.41]
[1757617407919,7.57,226.17,226.11,0.027998]
[1757617409417,7.57,226.17,226.12,7.41]
[1757617409616,7.57,226.17,226.11,0.027998]
[1757617409817,7.57,226.17,226.12,7.41]
[1757617410016,7.57,226.17,226.11,0.027998]
[1757617410616,7.57,226.17,226.12,7.41]
[1757617410816,7.57,226.17,226.11,0.027998]
[1757617411317,7.57,226.24,226.12,7.41]
[1757617411513,7.57,226.22,226.12,7.41]
[1757617411919,7.57,226.22,226.15,0.03069523]
[1757617414624,7.57,226.32,226.16,7.41]
[1757617414815,7.57,226.3,226.16,7.41]
[1757617415019,0.02858021,226.26,226.16,7.41]
[1757617415220,0.02858021,226.26,226.21,0.03139075]
[1757617415624,0.02858021,226.26,226.22,7.41]
[1757617415819,0.02858021,226.26,226.22,16.78]
[1757617416021,0.02858021,226.26,226.23,7.41]
[1757617416717,0.02858021,226.26,226.22,16.78]
[1757617417114,7.57,226.25,226.21,0.03139075]
[1757617417326,7.57,226.25,226.22,7.41]
[1757617418424,7.57,226.25,226.22,69.41]
[1757617421128,7.57,226.25,226.21,0.03139075]
[1757617421324,0.02858021,226.26,226.21,0.03139075]
[1757617421526,7.57,226.25,226.21,0.03139075]
[1757617431432,7.57,226.23,226.14,7.41]
[1757617431625,7.57,226.23,226.1,32.96]
[1757617431827,7.57,226.23,226.11,7.41]
[1757617432731,7.60253052,226.19,226.11,7.41]
[1757617435034,7.60253052,226.19,226.11,114.91]
[1757617435234,7.60253052,226.19,226.11,7.41]
[1757617435434,7.60253052,226.19,226.11,114.91]
[1757617439436,7.60253052,226.19,226.12,7.07]
[1757617439942,0.03253052,226.19,226.12,7.07]
[1757617445333,0.03253052,226.19,226.12,10.51591457]
[1757617445541,0.03253052,226.19,226.13,7.07]
[1757617447442,0.03253052,226.19,226.14,107.5]
[1757617447645,0.03253052,226.19,226.15,7.07]
[1757617447841,0.03253052,226.19,226.14,107.5]
[1757617448348,0.03253052,226.19,226.14,169.5]
[1757617448839,0.03253052,226.19,226.15,107.5]
[1757617449440,0.03253052,226.19,226.16,7.07]
[1757617449645,0.03253052,226.19,226.15,7.07]
[1757617449841,7.57253052,226.19,226.16,76.52]
[1757617450142,7.57253052,226.19,226.16,83.59]
[1757617450644,7.57253052,226.19,226.17,7.07]
[1757617451949,7.54,226.18,226.12,7.07]
[1757617452242,0.03253052,226.19,226.13,107.5]
[1757617452642,7.54,226.18,226.13,107.5]
[1757617452840,0.03253052,226.19,226.13,107.5]
[1757617453644,7.54,226.18,226.13,107.5]
[1757617453841,0.03253052,226.19,226.13,107.5]
[1757617454149,7.57253052,226.19,226.13,107.5]
[1757617454346,7.57253052,226.19,226.14,7.07]
[1757617454347,0.03253052,226.19,226.14,7.07]
[1757617454544,0.03253052,226.19,226.13,107.5]
[1757617454944,0.03253052,226.19,226.14,7.07]
[1757617458145,0.03253052,226.19,226.15,7.07]
[1757617458343,0.03253052,226.19,226.14,62.0]
[1757617459349,0.03253052,226.19,226.15,7.07]
[1757617460052,0.03253052,226.19,226.14,62.0]
[1757617460345,0.03253052,226.19,226.15,7.07]
[1757617460551,0.03253052,226.19,226.14,62.0]
[1757617461145,0.03253052,226.19,226.15,7.07]
[1757617461651,7.54,226.18,226.16,107.5]
[1757617462253,0.03253052,226.19,226.15,107.5]
[1757617462457,0.03253052,226.19,226.14,107.5]
[1757617462646,7.54,226.18,226.14,107.5]
[1757617463047,0.03253052,226.19,226.14,107.5]
[1757617463550,7.54,226.18,226.14,107.5]
[1757617463956,7.54,226.18,226.14,107.5324346]
[1757617464152,0.03253052,226.19,226.14,107.5324346]
[1757617464351,7.54,226.18,226.15,7.07]
[1757617466254,0.03253052,226.19,226.14,107.5324346]
[1757617466661,0.03253052,226.19,226.15,7.07]
[1757617467958,7.22,226.32,226.16,6.95]
[1757617468160,7.22,226.3,226.16,6.95]
[1757617468356,7.22,226.28,226.16,6.95]
[1757617468556,6.89632124,226.27,226.16,6.95]
[1757617468856,3.75490912,226.26,226.16,6.95]
[1757617469163,7.22,226.28,226.16,6.95]
[1757617469453,6.89496485,226.27,226.16,6.95]
[1757617469657,7.22,226.28,226.16,6.95]
[1757617469858,6.78971637,226.27,226.16,6.95]
[1757617470064,7.22,226.28,226.16,6.95]
[1757617476366,7.22,226.28,226.19,2.20444261]
[1757617476874,2.20444261,226.26,226.19,6.95]
[1757617477165,2.20444261,226.23,226.19,6.95]
[1757617477363,2.20444261,226.25,226.19,6.95]
[1757617477564,6.74947577,226.24,226.19,6.95]
[1757617477763,6.74947577,226.23,226.19,6.95]
[1757617477965,2.20444261,226.27,226.19,6.95]
[1757617478161,6.76434431,226.26,226.19,6.95]
[1757617478366,6.76434431,226.25,226.19,6.95]
[1757617478566,7.22,226.32,226.19,35.31]
[1757617478766,6.76619647,226.31,226.19,35.31]
[1757617478965,6.76619647,226.3,226.19,35.31]
[1757617479167,6.76619647,226.29,226.19,35.31]
[1757617479367,3.15355902,226.28,226.19,35.31]
[1757617479668,7.22,226.32,226.2,2.20444261]
[1757617479864,6.7670745,226.31,226.2,2.20444261]
[1757617480064,6.7670745,226.3,226.2,2.20444261]
[1757617480265,2.20444261,226.34,226.2,2.20444261]
[1757617480466,6.76705951,226.33,226.2,2.20444261]
[1757617480665,6.76705951,226.32,226.2,2.20444261]
[1757617480866,6.76705951,226.31,226.2,2.20444261]
[1757617481066,6.76705951,226.3,226.2,2.20444261]
[1757617481267,2.20444261,226.34,226.2,2.20444261]
[1757617481471,6.76673827,226.33,226.2,2.20444261]
[1757617481675,6.76673827,226.32,226.2,2.20444261]
[1757617481865,6.76673827,226.31,226.2,2.20444261]
[1757617482062,6.76673827,226.3,226.2,2.20444261]
[1757617482268,2.20444261,226.34,226.2,2.20444261]
[1757617482563,6.76653868,226.33,226.2,2.20444261]
[1757617482772,6.76653868,226.32,226.2,2.20444261]
[1757617483069,6.76653868,226.31,226.2,2.20444261]
[1757617483269,6.76653868,226.3,226.2,2.20444261]
[1757617483472,3.15364639,226.29,226.2,2.20444261]
[1757617483666,2.20444261,226.34,226.2,2.20444261]
[1757617483867,6.76655543,226.33,226.2,2.20444261]
[1757617484071,6.76655543,226.32,226.2,2.20444261]
[1757617484266,6.76655543,226.31,226.2,2.20444261]
[1757617484471,6.76655543,226.3,226.2,82.26444261]
[1757617484668,3.1536408,226.29,226.2,82.26444261]
[1757617484873,2.20444261,226.31,226.2,2.20444261]
[1757617485069,2.20444261,226.28,226.17,2.20444261]
[1757617485371,6.76731802,226.27,226.16,16.9]
[1757617485569,2.20444261,226.28,226.16,16.9]
[1757617485570,6.76731802,226.26,226.16,16.9]
[1757617485776,3.15396074,226.25,226.16,16.9]
[1757617485965,2.20444261,226.28,226.16,16.9]
[1757617486168,6.76700075,226.27,226.16,16.9]
[1757617486466,6.76700075,226.26,226.14,2.20444261]
[1757617486671,3.15375739,226.25,226.14,18.96444261]
[1757617486864,2.20444261,226.28,226.14,18.96444261]
[1757617487070,6.767145,226.27,226.17,0.03213503]
[1757617487271,2.20444261,226.25,226.17,0.03213503]
[1757617487669,2.20444261,226.25,226.14,16.76]
[1757617487873,2.20444261,226.25,226.19,0.02889588]
[1757617488379,3.15385294,226.24,226.19,0.02889588]
[1757617488578,2.20444261,226.25,226.19,0.02889588]
[1757617488776,3.15385214,226.24,226.19,0.02889588]
[1757617488976,2.20444261,226.25,226.19,0.02889588]
[1757617489273,3.15428276,226.24,226.19,0.02889588]
[1757617489473,2.20444261,226.25,226.19,0.02889588]
[1757617489667,3.15430841,226.24,226.19,0.02889588]
[1757617489871,2.20444261,226.25,226.19,0.02889588]
[1757617490073,3.15470487,226.24,226.19,0.02889588]
[1757617490270,2.20444261,226.25,226.19,0.02889588]
[1757617490470,3.1546754,226.24,226.19,0.02889588]
[1757617490769,2.20444261,226.25,226.19,0.02889588]
[1757617491076,3.15496951,226.24,226.19,0.02889588]
[1757617491277,2.20444261,226.25,226.19,0.02889588]
[1757617491477,3.15480697,226.24,226.19,0.02889588]
[1757617491676,2.20444261,226.25,226.19,0.02889588]
[1757617491974,3.15480697,226.24,226.19,0.02889588]
[1757617492279,6.76853286,226.23,226.19,0.02889588]
[1757617492578,3.15453065,226.22,226.19,0.02889588]
[1757617492774,2.20444261,226.25,226.19,0.02889588]
[1757617492978,6.76855978,226.24,226.19,0.02889588]
[1757617493180,6.76855978,226.23,226.19,0.02889588]
[1757617493378,3.15458215,226.22,226.19,0.02889588]
[1757617493579,2.20444261,226.22,226.19,0.02889588]
[1757617499491,3.153831,226.21,226.08,10.44]
[1757617499790,2.20444261,226.19,226.08,10.44]
[1757617500789,0.03025421,226.16,226.08,10.44]
[1757617501795,0.03025421,226.16,226.1,2.20444261]
[1757617502286,0.03025421,226.16,226.11,62.0]
[1757617508201,0.03025421,226.16,226.13,2.20444261]
[1757617509295,2.20444261,226.33,226.13,2.20444261]
[1757617509496,10.16451172,226.32,226.18,2.20444261]
[1757617509691,10.16451172,226.31,226.18,7.86444261]
[1757617509898,6.7818582,226.3,226.18,7.86444261]
[1757617510096,6.7818582,226.29,226.18,7.86444261]
[1757617510293,3.18509265,226.28,226.18,7.86444261]
[1757617510499,2.20444261,226.33,226.21,0.03383415]
[1757617510799,6.78229391,226.32,226.21,0.03383415]
[1757617511098,6.78229391,226.31,226.21,0.03383415]
[1757617511299,6.78229391,226.3,226.21,0.03383415]
[1757617511500,6.78229391,226.29,226.21,0.03383415]
[1757617511694,29.18444261,226.36,226.21,2.23827676]
[1757617511895,10.16662272,226.35,226.21,2.20444261]
[1757617512096,6.78325787,226.34,226.26,0.03260368]
[1757617512293,6.78325787,226.33,226.26,0.03260368]
[1757617512494,6.78325787,226.32,226.26,0.03260368]
[1757617512700,3.1857645,226.31,226.26,0.03260368]
[1757617512898,0.02956997,226.32,226.26,0.03260368]
[1757617513098,3.1857019,226.31,226.26,0.03260368]
[1757617513398,0.02956997,226.32,226.26,0.03260368]
[1757617513593,3.185852,226.31,226.26,0.03260368]
[1757617513793,0.02956997,226.32,226.26,0.03260368]
[1757617513991,3.185852,226.31,226.26,0.03260368]
[1757617514200,0.02956997,226.32,226.26,0.03260368]
[1757617514500,3.18551267,226.31,226.26,0.03260368]
[1757617514700,0.02956997,226.32,226.26,0.03260368]
[1757617514899,3.18551273,226.31,226.26,0.03260368]
[1757617515099,0.02956997,226.32,226.26,0.03260368]
[1757617515300,3.18522855,226.31,226.26,0.03260368]
[1757617515499,0.02956997,226.32,226.26,0.03260368]
[1757617518805,0.02956997,226.32,226.26,3.51260368]
[1757617521699,0.02956997,226.32,226.26,0.03260368]
[1757617522005,2.20444261,226.31,226.26,0.03260368]
[1757617526706,2.20444261,226.28,226.26,0.03260368]
[1757617527507,2.20444261,226.28,226.07,13.02687632]
[1757617527704,2.20444261,226.24,226.1,2.20444261]
[1757617528911,0.02872373,226.19,226.1,2.20444261]
[1757617529303,0.02872373,226.19,226.13,2.20444261]
[1757617530611,0.02872373,226.19,226.14,62.0]
[1757617533210,0.02872373,226.19,226.16,2.20444261]
[1757617533405,0.02872373,226.19,226.17,107.9]
[1757617533612,0.1,226.36,226.17,107.9]
[1757617533613,2.20444261,226.33,226.17,107.9]
[1757617533808,6.77073219,226.32,226.17,107.9]
[1757617534009,3.17999182,226.31,226.17,107.9]
[1757617534207,2.20444261,226.33,226.17,107.9]
[1757617534404,6.77132627,226.32,226.17,107.9]
[1757617534714,5.38462905,226.31,226.16,2.20444261]
[1757617534908,2.20444261,226.28,226.22,0.02843252]
[1757617535307,2.20444261,226.28,226.16,14.74444261]
[1757617536315,2.20444261,226.28,226.16,76.74444261]
[1757617538106,2.20444261,226.28,226.16,2.20444261]
[1757617538304,3.44557409,226.31,226.15,85.3]
[1757617538505,3.1826604,226.3,226.15,85.3]
[1757617538706,3.44557409,226.31,226.15,85.3]
[1757617539010,3.18316433,226.3,226.15,85.3]
[1757617539207,3.44557409,226.31,226.15,85.3]
[1757617539410,3.18350674,226.3,226.15,85.3]
[1757617539611,3.44557409,226.31,226.15,85.3]
[1757617539807,3.18387722,226.3,226.15,85.3]
[1757617540013,3.44557409,226.31,226.15,85.3]
[1757617540214,3.18397102,226.3,226.15,85.3]
[1757617540415,6.85,226.29,226.16,7.29]
[1757617541119,6.85,226.29,226.17,62.0]
[1757617541418,3.44557409,226.31,226.17,62.0]
[1757617541618,6.85,226.29,226.16,7.29]
[1757617543921,6.85,226.29,226.17,7.29]
[1757617544422,6.85,226.29,226.14,3.44557409]
[1757617544423,6.85,226.34,226.19,7.29]
[1757617544715,6.85,226.32,226.21,7.29]
[1757617545324,13.64954032,226.31,226.12,8.56]
[1757617545517,6.85,226.29,226.13,7.29]
[1757617545718,6.85,226.27,226.13,7.29]
[1757617546519,6.85,226.23,226.07,7.29]
[1757617546725,3.44557409,226.24,226.08,108.3]
[1757617547022,6.85,226.22,226.08,108.3]
[1757617547218,3.44557409,226.24,226.08,108.3]
[1757617547423,6.79819822,226.23,226.08,108.3]
[1757617547624,6.85,226.23,226.09,7.29]
[1757617548126,6.85,226.21,226.09,7.29]
[1757617548720,6.85,226.26,226.09,7.29]
[1757617548924,3.19200922,226.25,226.1,3.44557409]
[1757617549121,6.85,226.26,226.11,7.29]
[1757617549322,3.19200603,226.25,226.11,7.29]
[1757617549519,6.85,226.26,226.11,7.29]
[1757617551626,6.85,226.26,226.12,62.0]
[1757617551926,6.85,226.26,226.13,7.29]
[1757617555228,6.85,226.26,226.15,7.29]
[1757617558632,6.85,226.26,226.15,69.29]
[1757617559127,6.85,226.26,226.15,62.0]
[1757617559335,6.85,226.26,226.16,6.83]
[1757617561637,7.31,226.34,226.18,6.83]
[1757617561940,7.31,226.32,226.18,6.83]
[1757617562233,7.31,226.3,226.18,6.83]
[1757617562431,7.31,226.34,226.19,108.18]
[1757617562632,7.31,226.32,226.19,108.18]
[1757617562824,6.80925711,226.31,226.19,108.18]
[1757617563025,7.31,226.29,226.19,108.18]
[1757617563835,7.31,226.29,226.18,6.83]
[1757617566233,3.19750353,226.28,226.18,6.83]
[1757617566540,7.31,226.34,226.18,6.83]
[1757617566838,6.81749906,226.33,226.18,6.83]
[1757617567136,3.19802139,226.32,226.18,6.83]
[1757617567336,7.31,226.34,226.18,6.83]
[1757617567337,3.19802139,226.31,226.18,6.83]
[1757617567540,7.31,226.34,226.18,6.83]
[1757617567733,6.71183101,226.33,226.18,6.83]
[1757617567933,3.19828187,226.32,226.18,6.83]
[1757617568135,3.19828187,226.31,226.18,6.83]
[1757617568438,7.31,226.34,226.18,6.83]
[1757617568634,7.31,226.32,226.18,6.83]
[1757617568840,7.31,226.3,226.18,6.83]
[1757617569037,7.31,226.3,226.19,108.16]
[1757617569435,7.31,226.3,226.2,6.83]
[1757617572535,7.31,226.3,226.23,0.02978131]
[1757617572740,7.31,226.3,226.23,6.85978131]
[1757617574442,7.31,226.38,226.23,6.85978131]
[1757617574741,3.44557409,226.39,226.23,6.85978131]
[1757617574742,0.02785985,226.29,226.23,6.83]
[1757617575141,0.02785985,226.29,226.28,6.8614655]
[1757617575539,0.02785985,226.29,226.28,6.83]
[1757617579548,0.02785985,226.29,226.28,7.27]
[1757617580348,7.31,226.4,226.28,7.27]
[1757617580646,7.31,226.4,226.28,6.83]
[1757617581645,7.31,226.4,226.33,6.83]
[1757617582647,7.31,226.46,226.33,6.83]
[1757617582848,7.31,226.44,226.33,6.83]
[1757617583047,7.31,226.42,226.33,6.83]
[1757617583250,7.31,226.42,226.36,0.03317247]
[1757617598459,9.51243476,226.42,226.36,0.03317247]
[1757617605561,7.31,226.42,226.36,0.03317247]
[1757617607361,6.95,226.46,226.37,6.99]
[1757617607561,6.95,226.44,226.37,6.99]
[1757617608262,6.95,226.44,226.38,0.03097019]
[1757617615870,6.95,226.52,226.41,2.20243476]
[1757617616062,6.95,226.5,226.41,9.19243476]
[1757617616262,6.72515778,226.49,226.41,9.19243476]
[1757617616469,6.95,226.47,226.43,0.03273659]
[1757617616669,6.95,226.53,226.43,0.03273659]
[1757617616969,6.95,226.51,226.43,0.03273659]
[1757617617167,6.95,226.49,226.43,0.03273659]
[1757617617368,6.72644924,226.48,226.43,0.03273659]
[1757617617563,7.19,226.46,226.43,0.03273659]
[1757617617974,9.39243476,226.54,226.43,7.19273659]
[1757617618167,7.19,226.52,226.43,7.19273659]
[1757617618368,6.72799113,226.51,226.43,7.19273659]
[1757617618569,6.72799113,226.5,226.43,7.19273659]
[1757617618769,3.16687498,226.49,226.43,7.19273659]
[1757617618974,7.19,226.5,226.43,7.19273659]
[1757617619174,3.16706472,226.49,226.43,7.19273659]
[1757617619374,7.19,226.5,226.43,7.19273659]
[1757617619574,3.16691913,226.49,226.43,7.19273659]
[1757617619771,7.19,226.5,226.43,0.03273659]